fUST/lending_fUST_20240715
["ID","MTS","AMOUNT","RATE_DAILY","PERIOD"]
[332192820,1721026167692,-171.963412,0.00015801,2]
[332192821,1721026167722,-77.94766739,0.00015843,2]
[332192822,1721026167757,-94.01574461,0.00015843,2]
[332192823,1721026167787,-171.963412,0.00015885,2]
[332192824,1721026167817,-171.963412,0.00015927,2]
[332192825,1721026167847,-155.89533478,0.00015969,2]
[332192826,1721026186578,175.980431,0.00015287,2]
[332192827,1721026186783,175.980431,0.00015553,2]
[332192828,1721026192607,-175.980431,0.00015818,2]
[332192829,1721026192639,-175.980431,0.00016084,2]
[332192854,1721026236502,-818.684,0.00016154,2]
[332192904,1721026238809,-2679.27521258,0.00016154,2]
[332192905,1721026238818,-300.0,0.00016234,2]
[332192906,1721026238829,-300.0,0.00016234,2]
[332192907,1721026238838,-16394.870967,0.00016235,2]
[332192908,1721026238847,-500.0,0.00016244,2]
[332192909,1721026238856,-549.21511642,0.00016244,2]
[332192910,1721026238867,-12296.1532253,0.00016245,2]
[332192911,1721026238878,-500.0,0.00016254,2]
[332192912,1721026238888,-169.16121316,0.00016254,2]
[332192913,1721026238900,-500.0,0.00016254,2]
[332192914,1721026238911,-312.76002162,0.00016254,2]
[332192915,1721026238922,-500.0,0.00016254,2]
[332192916,1721026238932,-267.45100931,0.00016254,2]
[332192917,1721026238943,-500.0,0.00016254,2]
[332192918,1721026238955,-500.0,0.00016254,2]
[332192919,1721026238966,-500.0,0.00016254,2]
[332192920,1721026238976,-427.21961057,0.00016254,2]
[332192921,1721026238986,-500.0,0.00016254,2]
[332192922,1721026238995,-500.0,0.00016254,2]
[332192923,1721026239005,-21269.31771389,0.00016255,2]
[332192924,1721026239015,-16372.93467576,0.00016255,2]
[332192925,1721026239024,-27669.26981646,0.00016255,2]
[332192926,1721026239033,-42285.43342808,0.00016255,2]
[332192927,1721026239042,-5925.52660876,0.00016701,2]
[332192928,1721026239051,-291.11124733,0.00016801,2]
[332192929,1721026239061,-420.0,0.00017745,2]
[332192930,1721026239070,-420.0,0.00017858,2]
[332192931,1721026239083,-205.17798213,0.00018,2]
[332192932,1721026239092,-191.16817144,0.0001818,2]
[332192933,1721026239101,-5925.52660873,0.00018665,2]
[332192934,1721026239110,-8197.43548352,0.00018802,2]
[332192935,1721026239119,-3497.95921255,0.00018832,2]
[332192936,1721026239128,-252.88247266,0.000189,2]
[332192937,1721026239137,-497.0,0.00019178,10]
[332192938,1721026239146,-163.786883,0.00019178,2]
[332192939,1721026239157,-197.44371632,0.00019356,2]
[332192940,1721026239166,-587.0,0.00019397,2]
[332192941,1721026239175,-587.0,0.00019643,2]
[332192942,1721026239184,-8197.43548352,0.0001997,2]
[332192943,1721026239193,-151.0,0.0001998,2]
[332192944,1721026239202,-151.0,0.0001998,2]
[332192945,1721026239211,-16394.870967,0.0001999,2]
[332192946,1721026239222,-764.58301536,0.0002,2]
[332192947,1721026239231,-315.42361017,0.0002,2]
[332192948,1721026239240,-154.70202418,0.0002,2]
[332192949,1721026239250,-20802.87970273,0.0002,2]
[332192950,1721026239259,-225.9011813,0.0002,2]
[332192951,1721026239268,-139290.14523499,0.0002,2]
[332192952,1721026239277,-150.112233,0.0002,2]
[332192953,1721026239286,-151.0,0.0002,2]
[332192954,1721026239295,-151.0,0.0002,2]
[332192955,1721026239304,-151.0,0.0002,2]
[332192956,1721026239315,-191.026475,0.0002,2]
[332192957,1721026239324,-191.026475,0.0002,2]
[332192958,1721026239333,-5925.52660873,0.00020629,2]
[332192959,1721026239342,-150.112233,0.000207,4]
[332192960,1721026239353,-289.052294,0.00021096,2]
[332192961,1721026239363,-779.0,0.00021202,2]
[332192962,1721026239373,-150.112233,0.000213,2]
[332192963,1721026239382,-3497.95921255,0.0002151,2]
[332192964,1721026239391,-823.0,0.00021608,2]
[332192965,1721026239402,-1154.24398753,0.00021672,2]
[332192966,1721026239411,-151.0,0.00021918,2]
[332192967,1721026239420,-151.0,0.00021918,2]
[332192968,1721026239431,-151.0,0.00021918,2]
[332192969,1721026239440,-153.917559,0.00021918,2]
[332192970,1721026239449,-158.774726,0.00021918,2]
[332192971,1721026239458,-151.0,0.00021918,2]
[332192972,1721026239467,-151.0,0.00021918,2]
[332192973,1721026239476,-151.0,0.00021918,2]
[332192974,1721026239485,-151.0,0.00021918,2]
[332192975,1721026239494,-151.0,0.00021918,2]
[332192976,1721026239504,-237.110175,0.00021918,2]
[332192977,1721026239513,-237.110175,0.00021918,2]
[332192978,1721026239522,-151.0,0.00021918,2]
[332192979,1721026239531,-151.0,0.00021918,2]
[332192980,1721026239540,-237.110175,0.00021918,2]
[332192981,1721026239549,-237.110175,0.00021918,2]
[332192982,1721026239558,-151.0,0.00021918,2]
[332192983,1721026239568,-151.0,0.00021918,2]
[332192984,1721026239577,-151.0,0.00021918,2]
[332192985,1721026239588,-151.0,0.00021918,2]
[332192986,1721026239597,-151.0,0.00021918,2]
[332192987,1721026239607,-215.561084,0.00021918,2]
[332192988,1721026239616,-434.254007,0.00021918,2]
[332192989,1721026239626,-434.254007,0.00021918,2]
[332192990,1721026239635,-434.254007,0.00021918,2]
[332192991,1721026239644,-434.254007,0.00021918,2]
[332192992,1721026239654,-152.041816,0.00021918,2]
[332192993,1721026239663,-151.0,0.00021918,2]
[332192994,1721026239672,-151.0,0.00021918,2]
[332192995,1721026239681,-151.0,0.00021918,2]
[332192996,1721026239690,-151.0,0.00021918,2]
[332192997,1721026239699,-151.0,0.00021918,2]
[332192998,1721026239709,-151.0,0.00021918,2]
[332192999,1721026239720,-166.666666,0.00021918,2]
[332193000,1721026239731,-442.886004,0.00021918,2]
[332193001,1721026239741,-442.886004,0.00021918,2]
[332193002,1721026239750,-442.886004,0.00021918,2]
[332193003,1721026239761,-442.886004,0.00021918,2]
[332193004,1721026239770,-151.0,0.00021918,2]
[332193005,1721026239779,-156.868069,0.00021918,2]
[332193006,1721026239789,-205.094348,0.00021918,2]
[332193007,1721026239798,-205.094348,0.00021918,2]
[332193008,1721026239810,-205.094348,0.00021918,2]
[332193009,1721026239820,-205.094348,0.00021918,2]
[332193010,1721026239829,-159.365809,0.00021918,2]
[332193011,1721026239840,-151.0,0.00021918,2]
[332193012,1721026239850,-151.0,0.00021918,2]
[332193013,1721026239861,-151.0,0.00021918,2]
[332193014,1721026239871,-151.0,0.00021918,2]
[332193015,1721026239880,-151.0,0.00021918,2]
[332193016,1721026239889,-151.0,0.00021918,2]
[332193017,1721026239900,-151.0,0.00021918,2]
[332193018,1721026239909,-152.06573,0.00021918,2]
[332193019,1721026239919,-151.0,0.00021918,2]
[332193020,1721026239930,-151.0,0.00021918,2]
[332193021,1721026239940,-456.759475,0.00021918,2]
[332193022,1721026239950,-456.759475,0.00021918,2]
[332193023,1721026239959,-151.0,0.00021918,2]
[332193024,1721026239969,-10313.61421933,0.00022,5]
[332193025,1721026239978,-267.72461232,0.00022,2]
[332193026,1721026239988,-150.112233,0.00022,5]
[332193027,1721026239998,-187488.75467747,0.00022,2]
[332193028,1721026240007,-881.09737436,0.0002217,2]
[332193029,1721026240016,-166.666666,0.00022431,2]
[332193030,1721026240026,-5925.52660873,0.00022593,2]
[332193031,1721026240035,-150.112233,0.000227,2]
[332193032,1721026240044,-646.71219938,0.00022756,2]
[332193034,1721026240169,-166.666666,0.00022944,2]
[332193035,1721026240179,-160.0,0.00022961,3]
[332193036,1721026240189,-250.0,0.00022995,2]
[332193037,1721026240199,-858.22098895,0.00023,2]
[332193038,1721026240208,-150.112233,0.000233,4]
[332193039,1721026240217,-160.0,0.0002344,4]
[332193040,1721026240227,-154.66746495,0.00023455,2]
[332193041,1721026240236,-166.666666,0.00023456,2]
[332193042,1721026240245,-337.72950846,0.00023549,2]
[332193043,1721026240254,-337.72950846,0.00023629,2]
[332193044,1721026240264,-4802.49105128,0.00023661,2]
[332193045,1721026240273,-1152.0,0.00023769,2]
[332193046,1721026240282,-153.0,0.00023836,2]
[332193047,1721026240291,-8197.43548352,0.0002389,3]
[332193048,1721026240300,-9734.57059153,0.000239,5]
[332193049,1721026240311,-151.0,0.000239,7]
[332193050,1721026240321,-237.110175,0.000239,7]
[332193051,1721026240330,-151.0,0.000239,7]
[332193052,1721026240339,-237.110175,0.000239,7]
[332193053,1721026240350,-151.0,0.000239,7]
[332193054,1721026240364,-151.0,0.000239,7]
[332193055,1721026240374,-434.254007,0.000239,7]
[332193056,1721026240383,-434.254007,0.000239,7]
[332193057,1721026240392,-151.0,0.000239,7]
[332193058,1721026240402,-291.138921,0.000239,7]
[332193059,1721026240411,-247.33597,0.000239,7]
[332193060,1721026240420,-252.88247266,0.000239,2]
[332193061,1721026240430,-442.886004,0.000239,7]
[332193062,1721026240440,-442.886004,0.000239,7]
[332193063,1721026240450,-205.094348,0.000239,7]
[332193064,1721026240459,-205.094348,0.000239,7]
[332193065,1721026240468,-151.0,0.000239,7]
[332193066,1721026240477,-151.0,0.000239,7]
[332193067,1721026240486,-151.0,0.000239,7]
[332193068,1721026240495,-151.0,0.000239,7]
[332193069,1721026240504,-151.0,0.000239,7]
[332193071,1721026240513,-151.0,0.000239,7]
[332193073,1721026240523,-151.0,0.000239,7]
[332193075,1721026240533,-151.0,0.000239,2]
[332193077,1721026240542,-191.026475,0.000239,7]
[332193079,1721026240551,-191.026475,0.000239,7]
[332193081,1721026240562,-151.0,0.000239,7]
[332193083,1721026240572,-151.0,0.000239,7]
[332193085,1721026240581,-456.759475,0.000239,7]
[332193087,1721026240590,-456.759475,0.000239,7]
[332193088,1721026240599,-151.0,0.000239,7]
[332193090,1721026240608,-160.0,0.00023919,5]
[332193092,1721026240617,-150.0,0.00023953,2]
[332193094,1721026240627,-158.20390034,0.00023968,2]
[332193096,1721026240636,-166.666666,0.00023969,2]
[332193098,1721026240645,-4802.49105128,0.00023981,2]
[332193099,1721026240655,-12296.1532253,0.0002399,3]
[332193101,1721026240663,-183.978537,0.0002399,7]
[332193103,1721026240674,-4332.06024111,0.00024,30]
[332193105,1721026240684,-100932.6638662,0.00024,2]
[332193107,1721026240693,-151.0,0.00024,7]
[332193108,1721026240702,-1361.74587991,0.00024,2]
[332193110,1721026240711,-396.60210355,0.00024,2]
[332193112,1721026240722,-150.112233,0.00024,2]
[332193113,1721026240732,-151.0,0.00024,7]
[332193114,1721026240742,-237.110175,0.00024,7]
[332193115,1721026240751,-151.0,0.00024,7]
[332193117,1721026240760,-237.110175,0.00024,7]
[332193119,1721026240770,-151.0,0.00024,7]
[332193120,1721026240779,-151.0,0.00024,7]
[332193122,1721026240788,-434.254007,0.00024,7]
[332193124,1721026240797,-434.254007,0.00024,7]
[332193125,1721026240806,-151.0,0.00024,7]
[332193127,1721026240817,-442.886004,0.00024,7]
[332193128,1721026240827,-442.886004,0.00024,7]
[332193129,1721026240836,-205.094348,0.00024,7]
[332193130,1721026240845,-205.094348,0.00024,7]
[332193131,1721026240855,-151.0,0.00024,7]
[332193133,1721026240864,-151.0,0.00024,7]
[332193135,1721026240874,-151.0,0.00024,7]
[332193137,1721026240883,-151.0,0.00024,7]
[332193138,1721026240892,-151.0,0.00024,7]
[332193140,1721026240901,-151.0,0.00024,7]
[332193142,1721026240911,-151.0,0.00024,2]
[332193143,1721026240920,-191.026475,0.00024,7]
[332193145,1721026240929,-191.026475,0.00024,7]
[332193146,1721026240938,-151.0,0.00024,7]
[332193147,1721026240947,-151.0,0.00024,7]
[332193149,1721026240957,-456.759475,0.00024,7]
[332193151,1721026240966,-456.759475,0.00024,7]
[332193153,1721026240976,-151.0,0.00024,7]
[332193154,1721026240985,-183.978537,0.00024,7]
[332193155,1721026240994,-337.72950846,0.00024044,2]
[332193156,1721026241004,-153.0,0.00024055,2]
[332193157,1721026241013,-153.0,0.00024055,2]
[332193158,1721026241022,-153.0,0.00024055,2]
[332193159,1721026241031,-153.0,0.00024055,2]
[332193160,1721026241041,-337.72950846,0.00024123,2]
[332193161,1721026241052,-153.0,0.00024152,2]
[332193162,1721026241062,-150.59952781,0.00024161,2]
[332193163,1721026241071,-306.0,0.00024164,2]
[332193164,1721026241080,-3497.95921255,0.00024188,2]
[332193165,1721026241089,-280.5,0.00024278,2]
[332193166,1721026241098,-4802.49105128,0.00024319,2]
[332193167,1721026241107,-1000.0,0.00024359,2]
[332193168,1721026241116,-1000.0,0.00024381,2]
[332193169,1721026241125,-729.830292,0.00024384,2]
[332193170,1721026241134,-729.830292,0.00024384,2]
[332193171,1721026241143,-729.830292,0.00024384,2]
[332193172,1721026241152,-729.830292,0.00024384,2]
[332193173,1721026241160,-729.830292,0.00024384,2]
[332193174,1721026241169,-729.830292,0.00024384,2]
[332193175,1721026241178,-729.830292,0.00024384,2]
[332193176,1721026241187,-729.830292,0.00024384,2]
[332193177,1721026241196,-686.814329,0.0002439,5]
[332193178,1721026241205,-160.0,0.00024398,6]
[332193179,1721026241214,-1000.0,0.00024427,2]
[332193180,1721026241223,-1000.0,0.00024478,2]
[332193181,1721026241232,-166.666666,0.00024482,2]
[332193182,1721026241241,-1000.0,0.00024502,2]
[332193183,1721026241250,-337.72950849,0.00024554,2]
[332193184,1721026241259,-5925.52660873,0.00024557,2]
[332193185,1721026241268,-1000.0,0.00024578,2]
[332193186,1721026241277,-1000.0,0.00024593,2]
[332193187,1721026241286,-308.0586276,0.00024603,2]
[332193188,1721026241295,-4802.49105131,0.00024613,2]
[332193189,1721026241305,-1000.0,0.00024624,2]
[332193190,1721026241316,-500.0,0.00024657,2]
[332193191,1721026241325,-500.0,0.00024657,2]
[332193192,1721026241335,-500.0,0.00024657,2]
[332193193,1721026241344,-500.0,0.00024657,2]
[332193194,1721026241357,-500.0,0.00024657,2]
[332193195,1721026241366,-500.0,0.00024657,2]
[332193196,1721026241376,-500.0,0.00024657,2]
[332193197,1721026241385,-503.81703749,0.00024657,2]
[332193198,1721026241394,-500.0,0.00024657,2]
[332193199,1721026241403,-500.0,0.00024657,2]
[332193200,1721026241412,-500.0,0.00024657,2]
[332193201,1721026241422,-515.44608065,0.00024657,2]
[332193202,1721026241432,-500.0,0.00024657,2]
[332193203,1721026241442,-500.0,0.00024657,2]
[332193204,1721026241451,-500.0,0.00024657,2]
[332193205,1721026241461,-500.0,0.00024657,2]
[332193206,1721026241470,-500.0,0.00024657,2]
[332193207,1721026241479,-500.0,0.00024657,2]
[332193208,1721026241488,-505.65589366,0.00024657,2]
[332193209,1721026241498,-505.61207555,0.00024657,2]
[332193210,1721026241508,-500.0,0.00024657,2]
[332193211,1721026241517,-500.0,0.00024657,2]
[332193212,1721026241526,-500.0,0.00024657,2]
[332193213,1721026241535,-500.0,0.00024657,2]
[332193214,1721026241544,-500.0,0.00024657,2]
[332193215,1721026241553,-518.56351472,0.00024657,2]
[332193216,1721026241565,-505.28762453,0.00024657,2]
[332193217,1721026241575,-541.3614725,0.00024657,2]
[332193218,1721026241584,-500.0,0.00024657,2]
[332193219,1721026241593,-500.0,0.00024657,2]
[332193220,1721026241602,-500.0,0.00024657,2]
[332193221,1721026241611,-467.86386125,0.00024657,2]
[332193222,1721026241620,-500.0,0.00024657,2]
[332193223,1721026241629,-467.18215292,0.00024657,2]
[332193224,1721026241638,-500.0,0.00024657,2]
[332193225,1721026241647,-500.0,0.00024657,2]
[332193226,1721026241656,-500.0,0.00024657,2]
[332193227,1721026241666,-500.0,0.00024657,2]
[332193228,1721026241675,-500.0,0.00024657,2]
[332193229,1721026241685,-503.82846791,0.00024657,2]
[332193230,1721026241694,-500.0,0.00024657,2]
[332193231,1721026241703,-500.0,0.00024657,2]
[332193232,1721026241712,-500.0,0.00024657,2]
[332193233,1721026241722,-151.0,0.00024657,7]
[332193234,1721026241731,-500.0,0.00024657,2]
[332193235,1721026241741,-151.0,0.00024657,7]
[332193236,1721026241750,-500.0,0.00024657,2]
[332193237,1721026241758,-500.0,0.00024657,2]
[332193238,1721026241767,-500.0,0.00024657,2]
[332193239,1721026241777,-500.0,0.00024657,2]
[332193240,1721026241786,-500.0,0.00024657,2]
[332193241,1721026241795,-1045.52,0.00024657,4]
[332193242,1721026241805,-500.0,0.00024657,2]
[332193243,1721026241819,-500.0,0.00024657,2]
[332193244,1721026241829,-500.0,0.00024657,2]
[332193245,1721026241839,-503.73103914,0.00024657,2]
[332193246,1721026241848,-500.0,0.00024657,2]
[332193247,1721026241857,-500.0,0.00024657,2]
[332193248,1721026241867,-500.0,0.00024657,2]
[332193249,1721026241877,-500.0,0.00024657,2]
[332193250,1721026241886,-514.46764343,0.00024657,2]
[332193251,1721026241897,-497.93531155,0.00024657,2]
[332193252,1721026241907,-560.73364047,0.00024657,2]
[332193253,1721026241919,-500.0,0.00024657,2]
[332193254,1721026241930,-500.0,0.00024657,2]
[332193255,1721026241939,-500.0,0.00024657,2]
[332193256,1721026241949,-500.0,0.00024657,2]
[332193257,1721026241959,-505.92852377,0.00024657,2]
[332193258,1721026241968,-500.0,0.00024657,2]
[332193259,1721026241977,-500.0,0.00024657,2]
[332193260,1721026241987,-500.0,0.00024657,2]
[332193261,1721026241996,-500.0,0.00024657,2]
[332193262,1721026242006,-500.0,0.00024657,2]
[332193263,1721026242016,-500.0,0.00024657,2]
[332193264,1721026242026,-500.0,0.00024657,2]
[332193265,1721026242035,-500.0,0.00024657,2]
[332193266,1721026242047,-469.68469199,0.00024657,2]
[332193267,1721026242057,-500.0,0.00024657,2]
[332193268,1721026242068,-500.0,0.00024657,2]
[332193269,1721026242078,-500.0,0.00024657,2]
[332193270,1721026242087,-500.0,0.00024657,2]
[332193271,1721026242096,-512.1902222,0.00024657,2]
[332193272,1721026242105,-539.85084873,0.00024657,2]
[332193273,1721026242115,-500.0,0.00024657,2]
[332193274,1721026242124,-500.0,0.00024657,2]
[332193275,1721026242133,-500.0,0.00024657,2]
[332193276,1721026242143,-523.84329336,0.00024657,2]
[332193277,1721026242152,-500.0,0.00024657,2]
[332193278,1721026242161,-500.0,0.00024657,2]
[332193279,1721026242171,-500.0,0.00024657,2]
[332193280,1721026242180,-500.0,0.00024657,2]
[332193281,1721026242189,-500.0,0.00024657,2]
[332193282,1721026242199,-522.27615834,0.00024657,2]
[332193283,1721026242211,-643.33221833,0.00024657,2]
[332193284,1721026242222,-504.59583746,0.00024657,2]
[332193285,1721026242233,-500.0,0.00024657,2]
[332193286,1721026242243,-500.0,0.00024657,2]
[332193287,1721026242252,-344.11488941,0.00024657,2]
[332193288,1721026242261,-500.0,0.00024657,2]
[332193289,1721026242273,-500.0,0.00024657,2]
[332193290,1721026242282,-500.0,0.00024657,2]
[332193291,1721026242292,-500.0,0.00024657,2]
[332193292,1721026242301,-500.0,0.00024657,2]
[332193293,1721026242311,-515.44520916,0.00024657,2]
[332193294,1721026242320,-500.0,0.00024657,2]
[332193295,1721026242329,-500.0,0.00024657,2]
[332193296,1721026242339,-500.0,0.00024657,2]
[332193297,1721026242351,-500.0,0.00024657,2]
[332193298,1721026242367,-500.0,0.00024657,2]
[332193299,1721026242377,-500.0,0.00024657,2]
[332193300,1721026242386,-500.0,0.00024657,2]
[332193301,1721026242397,-505.10959769,0.00024657,2]
[332193302,1721026242406,-500.0,0.00024657,2]
[332193303,1721026242415,-500.0,0.00024657,2]
[332193304,1721026242424,-500.0,0.00024657,2]
[332193305,1721026242438,-500.0,0.00024657,2]
[332193306,1721026242450,-500.0,0.00024657,2]
[332193307,1721026242459,-503.78983757,0.00024657,2]
[332193308,1721026242469,-500.0,0.00024657,2]
[332193309,1721026242478,-520.36763088,0.00024657,2]
[332193310,1721026242487,-500.0,0.00024657,2]
[332193311,1721026242497,-310.56445264,0.00024657,2]
[332193312,1721026242507,-500.0,0.00024657,2]
[332193313,1721026242516,-500.0,0.00024657,2]
[332193314,1721026242526,-531.43806441,0.00024657,2]
[332193315,1721026242535,-504.96795269,0.00024657,2]
[332193316,1721026242545,-500.0,0.00024657,2]
[332193317,1721026242555,-500.0,0.00024657,2]
[332193318,1721026242567,-504.09789004,0.00024657,2]
[332193319,1721026242576,-500.0,0.00024657,2]
[332193320,1721026242586,-506.5,0.00024657,2]
[332193321,1721026242596,-500.0,0.00024657,2]
[332193322,1721026242606,-500.0,0.00024657,2]
[332193323,1721026242616,-500.0,0.00024657,2]
[332193324,1721026242625,-500.0,0.00024657,2]
[332193325,1721026242635,-500.0,0.00024657,2]
[332193326,1721026242644,-500.0,0.00024657,2]
[332193327,1721026242653,-151.0,0.00024657,7]
[332193328,1721026242663,-500.0,0.00024657,2]
[332193329,1721026242672,-151.0,0.00024657,7]
[332193330,1721026242684,-151.0,0.00024657,7]
[332193331,1721026242693,-151.0,0.00024657,7]
[332193332,1721026242702,-500.0,0.00024657,2]
[332193333,1721026242712,-504.9879137,0.00024657,2]
[332193334,1721026242721,-507.07700735,0.00024657,2]
[332193335,1721026242730,-500.0,0.00024657,2]
[332193336,1721026242740,-503.81560742,0.00024657,2]
[332193337,1721026242749,-500.0,0.00024657,2]
[332193338,1721026242759,-505.42141396,0.00024657,2]
[332193339,1721026242768,-237.110175,0.00024657,7]
[332193340,1721026242779,-237.110175,0.00024657,7]
[332193341,1721026242789,-237.110175,0.00024657,7]
[332193342,1721026242800,-237.110175,0.00024657,7]
[332193343,1721026242810,-237.110175,0.00024657,7]
[332193344,1721026242820,-151.0,0.00024657,7]
[332193345,1721026242832,-151.0,0.00024657,7]
[332193346,1721026242841,-151.0,0.00024657,7]
[332193347,1721026242852,-500.0,0.00024657,2]
[332193348,1721026242862,-237.110175,0.00024657,7]
[332193349,1721026242980,-151.0,0.00024657,7]
[332193350,1721026242991,-237.110175,0.00024657,7]
[332193351,1721026243000,-151.0,0.00024657,7]
[332193352,1721026243010,-237.110175,0.00024657,7]
[332193353,1721026243020,-237.110175,0.00024657,7]
[332193354,1721026243029,-237.110175,0.00024657,7]
[332193355,1721026243039,-151.0,0.00024657,7]
[332193356,1721026243048,-151.0,0.00024657,7]
[332193357,1721026243057,-151.0,0.00024657,7]
[332193358,1721026243069,-151.0,0.00024657,7]
[332193359,1721026243078,-500.0,0.00024657,2]
[332193360,1721026243088,-190.287589,0.00024657,7]
[332193361,1721026243098,-500.0,0.00024657,2]
[332193362,1721026243107,-505.1894278,0.00024657,2]
[332193363,1721026243117,-500.0,0.00024657,2]
[332193364,1721026243127,-500.0,0.00024657,2]
[332193365,1721026243136,-500.0,0.00024657,2]
[332193366,1721026243146,-500.0,0.00024657,2]
[332193367,1721026243155,-239.10454227,0.00024657,2]
[332193368,1721026243165,-500.0,0.00024657,2]
[332193369,1721026243174,-500.0,0.00024657,2]
[332193370,1721026243183,-500.0,0.00024657,2]
[332193372,1721026243192,-151.0,0.00024657,7]
[332193373,1721026243201,-151.0,0.00024657,7]
[332193374,1721026243210,-151.0,0.00024657,7]
[332193375,1721026243220,-151.0,0.00024657,7]
[332193376,1721026243228,-503.92591674,0.00024657,2]
[332193377,1721026243237,-151.0,0.00024657,7]
[332193379,1721026243246,-500.0,0.00024657,2]
[332193381,1721026243256,-500.0,0.00024657,2]
[332193383,1721026243265,-500.0,0.00024657,2]
[332193385,1721026243274,-503.69477991,0.00024657,2]
[332193387,1721026243283,-536.49430079,0.00024657,2]
[332193389,1721026243292,-500.0,0.00024657,2]
[332193390,1721026243301,-500.0,0.00024657,2]
[332193391,1721026243312,-508.78672029,0.00024657,2]
[332193392,1721026243324,-316.05537784,0.00024657,2]
[332193393,1721026243333,-500.0,0.00024657,2]
[332193394,1721026243342,-500.0,0.00024657,2]
[332193395,1721026243355,-514.46089773,0.00024657,2]
[332193396,1721026243364,-500.0,0.00024657,2]
[332193397,1721026243373,-434.254007,0.00024657,7]
[332193398,1721026243382,-434.254007,0.00024657,7]
[332193399,1721026243391,-434.254007,0.00024657,7]
[332193400,1721026243400,-434.254007,0.00024657,7]
[332193401,1721026243409,-434.254007,0.00024657,7]
[332193402,1721026243418,-500.0,0.00024657,2]
[332193403,1721026243427,-434.254007,0.00024657,7]
[332193404,1721026243436,-434.254007,0.00024657,7]
[332193405,1721026243446,-434.254007,0.00024657,7]
[332193406,1721026243456,-434.254007,0.00024657,7]
[332193408,1721026243465,-500.0,0.00024657,2]
[332193409,1721026243474,-434.254007,0.00024657,7]
[332193411,1721026243483,-500.0,0.00024657,2]
[332193413,1721026243492,-729.830292,0.00024657,2]
[332193414,1721026243501,-729.830292,0.00024657,2]
[332193416,1721026243510,-729.830292,0.00024657,2]
[332193418,1721026243520,-729.830292,0.00024657,2]
[332193419,1721026243528,-729.830292,0.00024657,2]
[332193421,1721026243538,-500.0,0.00024657,2]
[332193423,1721026243547,-729.830292,0.00024657,2]
[332193424,1721026243557,-729.830292,0.00024657,2]
[332193426,1721026243568,-729.830292,0.00024657,2]
[332193428,1721026243577,-729.830292,0.00024657,2]
[332193429,1721026243586,-729.830292,0.00024657,2]
[332193430,1721026243595,-500.0,0.00024657,2]
[332193431,1721026243604,-500.0,0.00024657,2]
[332193432,1721026243613,-394.06907291,0.00024657,2]
[332193433,1721026243622,-500.0,0.00024657,2]
[332193434,1721026243631,-1500.0,0.00024657,2]
[332193435,1721026243640,-500.0,0.00024657,2]
[332193436,1721026243649,-805.28,0.00024657,2]
[332193437,1721026243659,-500.0,0.00024657,2]
[332193438,1721026243668,-500.0,0.00024657,2]
[332193439,1721026243677,-500.0,0.00024657,2]
[332193440,1721026243687,-504.94151061,0.00024657,2]
[332193442,1721026243695,-500.0,0.00024657,2]
[332193443,1721026243705,-151.0,0.00024657,7]
[332193445,1721026243714,-151.0,0.00024657,7]